Cogmind - Beta 14 @@@ ROGUE MODE // 2024.12.11 @ 18:42:30 Player: Fangrelle Result: Destroyed by VT-PXP(R) with Subdweller Machine Gun Performance ------------- Evolutions (0) 0 Regions Visited (2) 400 Robots Destroyed (42) 210 Value Destroyed (714) 714 Prototype IDs (11) 220 Alien Tech Used (0) 0 Bonus (0) 0 TOTAL SCORE: 1544 Bonus ------- None Cogmind --------- Core Integrity 0/250 Matter 4/300 Energy 180/180 System Corruption 3% Temperature Cool (0) Movement Treading (480) Ox4 Location -10/Subcaves Parts ------- > --- POWER (1) -------- Meta Core > --- PROPULSION (2+1) - Light Treads > --- UTILITY (2+1) ---- Huge Storage Unit (+) Light Armor Plating Makeshift Light Armor Plating > --- WEAPON (2+1) ----- Heavy Battle Rifle > --- INVENTORY (25) --- Improved Terrain Scanner Improved Terrain Scanner Light Armor Plating Light Armor Plating Light Armor Plating Light Armor Plating Light Armor Plating Light Armor Plating Light Cannon Light Cannon Light Cannon Grenade Launcher Grenade Launcher Datajack Mining Laser Peak State ------------ > --- POWER ------------ Meta Core > --- PROPULSION ------- Light Treads Light Treads > --- UTILITY ---------- Huge Storage Unit Light Armor Plating Makeshift Light Armor Plating > --- WEAPON ----------- Heavy Battle Rifle Light Cannon > --- INVENTORY -------- Light Treads Improved Terrain Scanner Improved Terrain Scanner Light Armor Plating Light Armor Plating Light Armor Plating Light Armor Plating Light Armor Plating Light Armor Plating Light Cannon Light Cannon Light Cannon Grenade Launcher Grenade Launcher Datajack Mining Laser [Rating: 28] Favorites ----------- Power Meta Core Engine Ion Engine Power Core Meta Core Propulsion Light Treads Treads Light Treads Leg Aluminum Leg Utility Light Armor Plating Device Seismic Detector Storage Huge Storage Unit Processor Transport Network Coupler Protection Light Armor Plating Weapon Light Cannon Ballistic Gun Assault Rifle Ballistic Cannon Light Cannon Special Weapon Mining Laser Special Melee Weapon Datajack Build | -11 -10 -10 ------- Run | Yrd Mat Sub Slots Evolved . | . . . Power . | . . . Propulsion . | . . . Utility . | . . . Weapon . | . . . Parts Attached 30 | 3 13 14 Power 2 | . 1 1 Engine 1 | . 1 . Core 1 | . . 1 Reactor . | . . . Propulsion 4 | 2 1 1 Treads 4 | 2 1 1 Leg . | . . . Wheel . | . . . Hover . | . . . Flight . | . . . Utility 11 | 1 6 4 Device 2 | 1 1 . Storage 2 | . 1 1 Processor 1 | . 1 . Hackware . | . . . Protection 6 | . 3 3 Artifact . | . . . Weapon 13 | . 5 8 Energy Gun . | . . . Energy Cannon . | . . . Ballistic Gun 2 | . 1 1 Ballistic Cannon 6 | . 2 4 Launcher . | . . . Special Weapon 4 | . 1 3 Impact Weapon . | . . . Slashing Weapon . | . . . Piercing Weapon . | . . . Special Melee Weapon 1 | . 1 . Unidentified Prototypes . | . . . Parts Lost 3 | . . 3 Power . | . . . Propulsion 1 | . . 1 Utility 1 | . . 1 Weapon 1 | . . 1 Highest Loss Streak 2 | . . 2 To Critical Strikes . | . . . Average Slot Usage (%) 90 | . 99 83 Engine 7 | . 13 3 Core 4 | . . 7 Treads 24 | . 28 21 Storage 10 | . 14 7 Protection 17 | . 11 21 Ballistic Gun 12 | . 17 8 Ballistic Cannon 10 | . 9 11 Special Weapon 1 | . . 1 Peak Build Rating 28 | 8 10 28 Average Rating 17 | 6 9 23 On Entrance 8 | 6 8 10 Naked Turns . | . . . Heaviest Build 100 | 13 94 100 Greatest Support 40 | 40 40 40 Greatest Overweight (x) 2 | . 2 2 Average Overweight (x) 1 | . 1 1 Largest Inventory Capacity 25 | 8 25 25 Average Capacity 19 | 8 20 20 Most Carried 25 | 8 25 25 Average Carried 13 | 6 17 11 Final Capacity 25 | 8 25 25 Final Carried 25 | 8 25 15 Class Distribution -------------------- 100% | Mutant Dominant Class ---------------- Mutant | -10/Materials Mutant | -10/Subcaves Resources | -11 -10 -10 ----------- Run | Yrd Mat Sub Matter Collected 1225 | 434 441 350 Remotely . | . . . Salvage Created 1162 | 307 719 136 Parts 91 | 35 47 9 Haulers Intercepted 1 | . 1 . Recyclers Shooed 2 | . 2 . Parts Field Recycled . | . . . Retrieved Matter . | . . . Parts Self-Destructed 9 | . . 9 Prevented 1 | . . 1 Kills | -11 -10 -10 ------- Run | Yrd Mat Sub Combat Hostiles Destroyed 21 | . 14 7 Guns 13 | . 11 2 Cannons 8 | . 3 5 Classes Destroyed 10 | 3 5 2 Worker 3 | 2 1 . Builder 2 | . 2 . Tunneler 9 | 9 . . Hauler 1 | . 1 . Recycler 3 | 1 2 . Watcher 3 | . 3 . Swarmer 8 | . 6 2 Grunt 8 | . 8 . Sentry 1 | . . 1 Subdweller 4 | . . 4 Best Kill Streak 4 | 4 4 2 Combat Bots Only 3 | . 3 2 Max Kills in Single Turn 2 | 2 2 1 Gunslinging 1 | . 1 . Exploded . | . . . Melee . | . . . Uniques/NPCs Destroyed . | . . . Combat | -11 -10 -10 -------- Run | Yrd Mat Sub Hostile Shots Fired 149 | . 73 76 Missed 47 | . 24 23 Damage Taken 1413 | . 526 887 Core 253 | . 86 167 Absorbed by Shields . | . . . Core Remaining (%) 100 | 100 . . Volleys Fired 183 | 34 78 71 Largest 2 | 2 2 2 Hottest 100 | 40 100 100 Shots Fired 317 | 68 148 101 Gun 203 | 68 117 18 Cannon 77 | . 22 55 Launcher . | . . . Special 37 | . 9 28 Kinetic 280 | 68 139 73 Thermal 37 | . 9 28 Explosive . | . . . Electromagnetic . | . . . Robot Hit Streak 22 | 6 8 22 Robot Miss Streak 7 | 3 7 4 Penetration Max . | . . . Secondary Targets 2 | . 2 . Max Gunslinging Chain 1 | . 1 . Shots Hit Robots 141 | 27 76 38 Core Hits 57 | 13 32 12 Critical Kills . | . . . Critical Parts Destroyed . | . . . Critical Strikes 3 | . . 3 Destroy 1 | . . 1 Blast 2 | . . 2 Melee Attacks 1 | . 1 . Impact . | . . . Slashing . | . . . Piercing . | . . . Sneak Attacks 1 | . 1 . Combat Hostiles . | . . . Follow-up Attacks . | . . . Damage Inflicted 2092 | 362 1023 707 Guns 1422 | 362 895 165 Cannons 661 | . 128 533 Explosions . | . . . Melee . | . . . Ramming 9 | . . 9 Kinetic 2083 | 362 1023 698 Thermal . | . . . Explosive . | . . . Electromagnetic . | . . . Impact . | . . . Slashing . | . . . Piercing . | . . . Highest Corruption 3 | . 3 3 Average Corruption 2 | . 2 3 Corruption Purged . | . . . Corruption Blocked . | . . . Effects 88 | . 30 58 Message Errors 28 | . 12 16 Matter Fused 19 | . 5 14 Heat Flow Errors 9 | . 3 6 Energy Discharges 10 | . 4 6 Parts Rejected 1 | . . 1 Data Loss (minor) 11 | . 4 7 Data Loss (major) 4 | . 1 3 Misfires 4 | . 1 3 Alerts 1 | . . 1 Weapon Failures 1 | . . 1 Overload Shots . | . . . Overflow Damage 4 | . . 4 Projectiles 4 | . . 4 Explosions . | . . . Melee . | . . . Knockbacks 6 | . 2 4 Impact . | . . . Kinetic 5 | . 2 3 Secondary 1 | . . 1 Self-Inflicted Damage . | . . . Shots . | . . . Rammed 5 | . . 5 Targets Rammed 5 | . . 5 Kicked . | . . . Crushed . | . . . Highest Temperature 227 | 6 214 227 Average Temperature 75 | 6 68 106 Received Heat Transfer 306 | . 204 102 Siege Activations . | . . . Robots Corrupted . | . . . Combat Hostiles . | . . . Parts Fried . | . . . Impact Corruptions 1 | . . 1 Robots Melted . | . . . Combat Hostiles . | . . . Parts Melted . | . . . Heat Transferred . | . . . Parts Sabotaged . | . . . Parts Stolen . | . . . Parts Stripped . | . . . Power Chain Reactions . | . . . Alert | -11 -10 -10 ------- Run | Yrd Mat Sub Peak Influence 299 | 60 299 . Initial 39 | . 39 . Average 100 | 33 108 . Maximum Alert Level 1 | . 1 . Low Security (%) 92 | 100 91 . Level 1 7 | . 8 . Level 2 . | . . . Level 3 . | . . . Level 4 . | . . . Level 5 . | . . . High Security . | . . . Max Security . | . . . Squads Dispatched 3 | . 3 . Investigation 2 | . 2 . Extermination . | . . . Reinforcement 1 | . 1 . Assault . | . . . Garrison . | . . . Intercept . | . . . Searches Triggered . | . . . Construction Impeded . | . . . Haulers Reinforced . | . . . Active Scanning Responses . | . . . Cargo Convoy Interrupts . | . . . Stealth | -11 -10 -10 --------- Run | Yrd Mat Sub Distress Signals 1 | . 1 . Communications Jammed . | . . . Distress Signals . | . . . Times Spotted 38 | . 25 13 Peak Tracking Total 5 | . 5 3 Tactical Retreats 3 | . 1 2 Traps | -11 -10 -10 ------- Run | Yrd Mat Sub Traps Triggered 2 | . 2 . Indirectly . | . . . Trap Hack Attempts 17 | . 17 . Triggered . | . . . Disarmed . | . . . Reprogrammed 1 | . 1 . Reused . | . . . Traps Extracted . | . . . Installed . | . . . Triggered . | . . . Machines | -11 -10 -10 ---------- Run | Yrd Mat Sub Machines Disabled 1 | . . 1 Max in Single Turn 1 | . . 1 Machines Repaired . | . . . Machines Dismantled . | . . . Machines Sabotaged . | . . . Overloaded Fab Kills . | . . . Hacking | -11 -10 -10 --------- Run | Yrd Mat Sub Machines Accessed 12 | . 10 2 Terminals 7 | . 7 . Fabricators . | . . . Repair Stations 1 | . 1 . Recycling Units 2 | . 2 . Scanalyzers . | . . . Garrison Access . | . . . Total Hacks 50 | . 37 13 Successful 32 | . 19 13 Failed 18 | . 18 . Catastrophic . | . . . Database Lockouts . | . . . Manual 31 | . 31 . Terminals 27 | . 27 . Fabricators . | . . . Repair Stations 2 | . 2 . Recycling Units 8 | . 8 . Scanalyzers . | . . . Garrison Access . | . . . Terminal Hacks 14 | . 1 13 Record 12 | . . 12 Robot Analysis 1 | . 1 . Derelict Proto ID Bank 1 | . . 1 Fabricator Hacks . | . . . Repair Station Hacks . | . . . Recycling Unit Hacks 2 | . 2 . Retrieve Components 2 | . 2 . Scanalyzer . | . . . Garrison Access Hacks . | . . . Unauthorized Hacks 16 | . 16 . Terminals 13 | . 13 . Assimilate 6 | . 6 . Botnet 6 | . 6 . Operators 1 | . 1 . Fabricators . | . . . Repair Stations 1 | . 1 . Mechanics 1 | . 1 . Recycling Units 2 | . 2 . Tunnel 2 | . 2 . Scanalyzers . | . . . Garrison Access . | . . . Data Cores Recovered . | . . . Used . | . . . Hacking Detections 8 | . 8 . Full Trace Events . | . . . Feedback Events . | . . . Feedback Blocked . | . . . Robot Schematics Acquired . | . . . Robots Built . | . . . Authchips . | . . . Time . | . . . Total Robot Build Rating . | . . . Part Schematics Acquired . | . . . Parts Built . | . . . Authchips . | . . . Time . | . . . Total Part Build Rating . | . . . Parts Repaired . | . . . Time . | . . . Parts Recycled . | . . . Recycled Matter . | . . . Retrieved Matter . | . . . Retrieved Components 20 | . 20 . Parts Scanalyzed . | . . . Part Schematics Acquired . | . . . Parts Damaged . | . . . Bothacking | -11 -10 -10 ------------ Run | Yrd Mat Sub Used RIF Installer . | . . . Robots Hacked 1 | . 1 . Non-combat 1 | . 1 . Combat . | . . . Robot Hacks Applied 1 | . 1 . no_distress 1 | . 1 . Relay Couplers Released . | . . . Fabnet Peak Effective % . | . . . Robots Rewired . | . . . Allies Hacked . | . . . Hacks Repelled . | . . . Allies | -11 -10 -10 -------- Run | Yrd Mat Sub Total Allies . | . . . Largest Group . | . . . Highest-Rated Group . | . . . Highest-Rated Ally . | . . . Total Orders . | . . . Ally Attacks . | . . . Total Damage . | . . . Kills . | . . . Allies Corrupted . | . . . Allies Melted . | . . . Intel | -11 -10 -10 ------- Run | Yrd Mat Sub Robot Analysis Total 1 | . 1 . Derelict Logs Recovered . | . . . Drone Launches . | . . . Drone Recoveries . | . . . Exploration | -11 -10 -10 ------------- Run | Yrd Mat Sub Turns Passed 5876 | 277 2287 3312 Spaces Moved 2004 | 86 761 1157 Core . | . . . Treads 1968 | 50 761 1157 Legs 36 | 36 . . Wheels . | . . . Hover . | . . . Flight . | . . . Fastest Speed 120 | 120 160 160 Average Speed 254 | 143 254 261 Slowest Speed 320 | 160 320 320 Overloaded Moves . | . . . Propulsion Burnouts . | . . . Robots Hopped . | . . . Cave-ins Triggered . | . . . Exploration Rate (%) 47 | 4 97 41 Regions Visited 2 Branch Regions 1 Pre-discovered Areas 2 | . 2 . Known Exits Taken . | . . . Unknown Exits Taken 2 | 1 1 . Scrap Searched 3 | . . 3 Spaces Dug 3 | . . 3 Terrain Destroyed 4 | . . 4 Melee . | . . . Projectile 4 | . . 4 AOE . | . . . Terrain Rammed . | . . . Walls Destroyed . | . . . Machines Disabled . | . . . Actions | -11 -10 -10 --------- Run | Yrd Mat Sub Total 2382 | 173 945 1264 Wait 86 | 41 44 1 Move 2002 | 85 760 1157 Hop . | . . . Pick Up 40 | 6 22 12 Fast Attach 9 | 1 3 5 Attach 6 | 2 2 2 Detach . | . . . Swap 15 | . 8 7 Drop 18 | 4 10 4 Fire 183 | 34 78 71 Melee 1 | . 1 . Ram . | . . . Kick . | . . . Crush 5 | . . 5 Escape Stasis . | . . . Rewire . | . . . Trap 17 | . 17 . Miscellaneous . | . . . Route ------- -11/Scrapyard -10/Materials (discovered 6 exits: [*Mat x3] / [*Min x2] / *Sub) -10/Subcaves (discovered 2 exits: [*Mat x2]) History --------- Turn | Location | Event 28 | -11/Scrapyard | Discovered new exit (range 3) 278 | -11/Scrapyard | Entered Materials 317 | -10/Materials | Build established: Mutant 346 | -10/Materials | Discovered new exit (range 9) 745 | -10/Materials | Discovered new exit (range 16) 1002 | -10/Materials | Discovered new exit (range 11) 2048 | -10/Materials | Discovered new exit (range 12) 2295 | -10/Materials | Discovered new exit (range 10) 2555 | -10/Materials | Discovered new exit (range 2) 2565 | -10/Materials | Entered Subcaves 2863 | -10/Subcaves | Core integrity fell below 50% 2906 | -10/Subcaves | Discovered new exit (range 10) 3256 | -10/Subcaves | Visited 4L-MR0's lab 3277 | -10/Subcaves | Found Meta Core 3279 | -10/Subcaves | Attached Meta Core, gained temporary slots: Propulsion, Utility, Weapon 3443 | -10/Subcaves | Visited Clippyterm 3453 | -10/Subcaves | Learned Research security intel 3453 | -10/Subcaves | Learned Factory emergency access door positions 3583 | -10/Subcaves | Shifting Twisted Machinery released Sub. Machine Gun 3584 | -10/Subcaves | Shifting Twisted Machinery released Sub. Machine Gun 4715 | -10/Subcaves | A swath of the cavern ceiling suddenly collapsed 5287 | -10/Subcaves | Discovered new exit (range 10) 5868 | -10/Subcaves | Core integrity fell below 20% 5877 | -10/Subcaves | Destroyed by VT-PXP(R) with Subdweller Machine Gun Last Messages --------------- 05309_ Y-45 Defender Heat Sink blasted off. 05312_ Y-45 Defender destroyed. 05321_ Lgt. Treads fries itself beyond repair. 05359_ Subatomizers dissect the Heat Sink. 05408_ Subatomizers dissect the Sub. Monowheel. 05456_ System corrupted: Component data lost. 05556_ System corrupted: Heat flow error (+109). 05580_ B=QEIUNGGD 3HPTBWNSQGO%K#PRQSK:UQ />>& 05599_ System corrupted: Energy discharge (-50). 05640_ System corrupted: Matter fused (-4). 05665_ System corrupted: Heat flow error (+259). 05693_ System corrupted: Component data lost. 05816_ <&:=GH4:ZKSAZ#82&O QERO48 05868_ System corrupted: Matter fused (-3). 05868_ Slammed into VT-PXP(R). 05869_ Lgt. Cannon destroyed. 05871_ Lgt. Treads destroyed. 05876_ Slammed into VT-PXP(R). Map ----- +----------------------------------------------------+ | ?????????????????????????????????????????????????? | | ?????????????????????????????????????????????????? | | ?????????????????????????????????????????????????? | | ?????????????????????????????????????????????????? | | ?????????????????????????????????????????????????? | | ?????????????????????????????????????????????????? | | ??????????????????"""????????????????????????????? | | ??????????????????""" ???????????????????????????? | | ??????????????????""" ??????????????????????????? | | ??????????????????""" "#?????????????????????????? | | ???????????????????"" "#?#####??????####????????? | | ??????????????????" " "## #?????## ####?????? | | ??????????????????"""""" #?????# ""##"???? | | ??????????????????#""""" ##????# """" ? | | ????????????????????# ####?# """ ? | | ????????????????????### ### "" | | ??????????????????##### && """ | | ??????????????# "" | | ??????????????# ### ## "### ? | | ?????????????# < #??###### # ## ##???? | | ????????????# #???????# #####??#????? | | ????????????? ### #???###### # ##?????????? | | ????????????????# ???## ## # ####??????? | | ????????????????# ??### # #??????? | | ????????????????## ??## # #??????? | | ?????????????????#??## @### # #??????? | | ??????????????????? # R =####### ##??????? | | ??????????????##### #### ##???## #???????? | | ?????????????## # #?## ####?## #???????? | | ????????????## #??## #??#### #?????## | | ????????????# # ###???# #??????# #????## | | ????????????## ####????# #???????###???## | | ?????????????# # ##??## ##???????????## | | ?????????????# #### #??????###??# | | ?????????????# ### #####?????## ##?# | | ?????????????# ## ##???####### ### | | ?????????????## # ###???## # # ## | | ??????????????##### ## #??#### | | ??????????????????# ## #??# | | ??????????????????# ## ##?# ## # # | | ????????????????#### ### ######### | | ??????#####???## #### ## ##???????## ## | | ??#####" "###?# ## #?????????# #? | | ??#* ####[""### ### #????????## ## | | ??#" ####"! ## # #### ## #??????### # | | ??## ##" ###" # ####### ##??????# # | | ??#" ### #"" ##### ##? #######??## | | ??#"" #?# #???## #?# ### ##### | | ??#"X #?# ##??## #?# ## | | ??#"" #?# #" ##?# #### ## ## | +----------------------------------------------------+ Best States ------------- Heat Dissipation 25 Energy Generation 17 Energy Capacity 250 Matter Stores 300 Matter Capacity 300 Sight Range 16 Terrain Scan Density 10 Armor Coverage 300 Evasion (%) 55 Recoil Reduction 2 Item Schematics ----------------- None Robot Schematics ------------------ None Fabricated ------------ Nothing Alien Tech Used ----------------- None Achievements -------------- None Challenges ------------ None Game ------ Seed HeavySpreadRail Manual? 0 Play Time 00:20:58 Cumulative 156.2 hours Start 2024.12.11 @ 18:25:32 End 2024.12.11 @ 18:42:30 Sessions 1 Manual Loads 0 Difficulty Rogue Special Mode None Game No. 297 Rogue 297 Adventurer 0 Explorer 0 Win Type - Total 0 Types 0/0/0/0/0/0/0/0/0 Lore% 46 Gallery% 42 Achievement% 36 Wizard Run 0 Options --------- Layout 0 ASCII 0 Keyboard 0 Movement Mouse Keybinds 0 Fullscreen 1 Font 24/Smallcaps Map View 91x25 Zoom Use 94% Tactical HUD 1 Map Filters NONE Filters NONE Steam 1 RUN: f6cdd23f-5b5b-4a61-9995-98e6dfe24652